[Event "32nd NATO Chess Championship"]
[Site "Tartu, Estonia"]
[Date "2022.06.30"]
[Round "6.44"]
[White "Korge, Kersti"]
[Black "Lambruschini, Alex"]
[Result "1/2-1/2"]
[TimeControl "90 min + 30 sec increment from move one"]
[WhiteFideId "4502310"]
[BlackFideId "2604868"]
[WhiteElo "1864"]
[BlackElo "1807"]

1. b4 {[%clk 01:30:30]} {[%emt 02:10:40]} d5 {[%clk 01:28:45]} {[%emt
00:02:30]} 2. Bb2 {[%clk 01:31:18]} {[%emt 00:00:09]} Nf6 {[%clk 01:27:38]}
{[%emt 00:01:36]} 3. e3 {[%clk 01:31:26]} {[%emt 00:00:23]} g6 {[%clk
01:18:49]} {[%emt 00:09:19]} 4. c4 {[%clk 01:30:26]} {[%emt 00:01:30]} Bg7
{[%clk 01:17:45]} {[%emt 00:01:34]} 5. Nf3 {[%clk 01:30:41]} {[%emt 00:00:15]}
O-O {[%clk 01:17:15]} {[%emt 00:01:00]} 6. d4 {[%clk 01:29:05]} {[%emt
00:02:07]} Bg4 {[%clk 01:05:07]} {[%emt 00:12:36]} 7. Nbd2 {[%clk 01:29:10]}
{[%emt 00:00:26]} e6 {[%clk 00:56:23]} {[%emt 00:09:14]} 8. Be2 {[%clk
01:28:16]} {[%emt 00:01:23]} Qe7 {[%clk 00:54:40]} {[%emt 00:02:13]} 9. c5
{[%clk 01:26:20]} {[%emt 00:02:27]} c6 {[%clk 00:49:09]} {[%emt 00:06:01]} 10.
O-O {[%clk 01:26:28]} {[%emt 00:00:21]} Nbd7 {[%clk 00:49:04]} {[%emt
00:00:36]} 11. a4 {[%clk 01:20:42]} {[%emt 00:06:16]} Ne4 {[%clk 00:44:09]}
{[%emt 00:05:24]} 12. Nxe4 {[%clk 01:20:32]} {[%emt 00:00:41]} dxe4 {[%clk
00:44:28]} {[%emt 00:00:12]} 13. Nd2 {[%clk 01:20:38]} {[%emt 00:00:23]} Bxe2
{[%clk 00:44:39]} {[%emt 00:00:20]} 14. Qxe2 {[%clk 01:21:03]} {[%emt
00:00:05]} f5 {[%clk 00:44:42]} {[%emt 00:00:26]} 15. Nc4 {[%clk 01:19:12]}
{[%emt 00:02:21]} Nf6 {[%clk 00:42:37]} {[%emt 00:02:34]} 16. Nd6 {[%clk
01:18:18]} {[%emt 00:01:25]} Nd5 {[%clk 00:42:17]} {[%emt 00:00:50]} 17. Qc4
{[%clk 01:18:26]} {[%emt 00:00:22]} Qd7 {[%clk 00:39:40]} {[%emt 00:03:07]} 18.
Qb3 {[%clk 01:12:31]} {[%emt 00:06:26]} Rfb8 {[%clk 00:38:59]} {[%emt
00:01:11]} 19. Nc4 {[%clk 01:11:27]} {[%emt 00:01:35]} h6 {[%clk 00:34:38]}
{[%emt 00:04:51]} 20. b5 {[%clk 01:09:33]} {[%emt 00:02:23]} Kh7 {[%clk
00:30:26]} {[%emt 00:04:42]} 21. b6 {[%clk 01:07:18]} {[%emt 00:02:46]} axb6
{[%clk 00:21:54]} {[%emt 00:09:03]} 22. Nxb6 {[%clk 01:07:37]} {[%emt
00:00:11]} Nxb6 {[%clk 00:22:17]} {[%emt 00:00:07]} 23. cxb6 {[%clk 01:07:30]}
{[%emt 00:00:37]} Qd5 {[%clk 00:20:27]} {[%emt 00:02:20]} 24. Qxd5 {[%clk
01:07:11]} {[%emt 00:00:49]} exd5 {[%clk 00:20:39]} {[%emt 00:00:18]} 25. Bc3
{[%clk 01:06:45]} {[%emt 00:00:56]} Ra6 {[%clk 00:19:17]} {[%emt 00:01:52]} 26.
a5 {[%clk 01:06:10]} {[%emt 00:01:06]} c5 {[%clk 00:17:18]} {[%emt 00:02:29]}
27. Rfc1 {[%clk 01:04:08]} {[%emt 00:02:31]} c4 {[%clk 00:17:28]} {[%emt
00:00:20]} 28. Rcb1 {[%clk 01:03:39]} {[%emt 00:00:59]} Rd8 {[%clk 00:13:09]}
{[%emt 00:04:48]} 29. Rb5 {[%clk 01:03:07]} {[%emt 00:01:03]} Bf8 {[%clk
00:12:42]} {[%emt 00:00:57]} 30. Kf1 {[%clk 01:03:13]} {[%emt 00:00:23]} Kg8
{[%clk 00:12:10]} {[%emt 00:01:02]} 31. Ke2 {[%clk 01:03:06]} {[%emt 00:00:37]}
Kf7 {[%clk 00:12:18]} {[%emt 00:00:22]} 32. Kd2 {[%clk 01:02:38]} {[%emt
00:00:58]} Ke6 {[%clk 00:12:37]} {[%emt 00:00:12]} 33. Kc2 {[%clk 01:02:05]}
{[%emt 00:01:03]} Rc8 {[%clk 00:09:24]} {[%emt 00:03:42]} 34. Rab1 {[%clk
01:01:32]} {[%emt 00:01:05]} Be7 {[%clk 00:08:26]} {[%emt 00:01:27]} 35. f3
{[%clk 00:56:38]} {[%emt 00:05:24]} Rc6 {[%clk 00:03:07]} {[%emt 00:05:49]} 36.
fxe4 {[%clk 00:55:44]} {[%emt 00:01:24]} fxe4 {[%clk 00:03:23]} {[%emt
00:00:13]} 37. Rf1 {[%clk 00:54:31]} {[%emt 00:01:43]} Ra8 {[%clk 00:03:21]}
{[%emt 00:00:33]} 38. Rbb1 {[%clk 00:50:21]} {[%emt 00:04:39]} Rcc8 {[%clk
00:01:10]} {[%emt 00:02:41]} 39. Rf2 {[%clk 00:49:18]} {[%emt 00:01:33]} Rf8
{[%clk 00:01:24]} {[%emt 00:00:16]} 40. Rbf1 {[%clk 00:48:51]} {[%emt
00:00:56]} Kd7 {[%clk 00:01:13]} {[%emt 00:00:42]} 41. Rf7 {[%clk 00:47:57]}
{[%emt 00:01:24]} Ke6 {[%clk 00:01:02]} {[%emt 00:00:41]} 42. Rxf8 {[%clk
00:47:51]} {[%emt 00:00:36]} Bxf8 {[%clk 00:01:22]} {[%emt 00:00:10]} 43. Ra1
{[%clk 00:46:00]} {[%emt 00:02:21]} Kd7 {[%clk 00:01:33]} {[%emt 00:00:19]} 44.
Kd2 {[%clk 00:37:47]} {[%emt 00:08:42]} Be7 {[%clk 00:01:41]} {[%emt 00:00:22]}
45. Ke2 {[%clk 00:37:16]} {[%emt 00:01:02]} Kc6 {[%clk 00:00:54]} {[%emt
00:01:17]} 46. Rb1 {[%clk 00:36:23]} {[%emt 00:01:23]} Rf8 {[%clk 00:00:37]}
{[%emt 00:00:47]} 47. Be1 {[%clk 00:34:25]} {[%emt 00:02:28]} Bd6 {[%clk
00:00:48]} {[%emt 00:00:20]} 48. h3 {[%clk 00:32:30]} {[%emt 00:02:24]} Be7
{[%clk 00:00:40]} {[%emt 00:00:39]} 49. Bg3 {[%clk 00:31:28]} {[%emt 00:01:31]}
Ra8 {[%clk 00:00:54]} {[%emt 00:00:16]} 50. Be1 {[%clk 00:29:43]} {[%emt
00:02:14]} Ba3 {[%clk 00:00:50]} {[%emt 00:00:35]} 51. Kd1 {[%clk 00:29:29]}
{[%emt 00:00:44]} Bd6 {[%clk 00:00:58]} {[%emt 00:00:22]} 52. Kc2 {[%clk
00:29:05]} {[%emt 00:00:55]} Rf8 {[%clk 00:01:16]} {[%emt 00:00:12]} 53. Kc3
{[%clk 00:27:38]} {[%emt 00:01:57]} Rf1 {[%clk 00:01:14]} {[%emt 00:00:32]} 54.
Kc2 {[%clk 00:27:10]} {[%emt 00:00:57]} Rg1 {[%clk 00:01:19]} {[%emt 00:00:26]}
55. a6 {[%clk 00:26:04]} {[%emt 00:01:37]} bxa6 {[%clk 00:01:18]} {[%emt
00:00:31]} 56. b7 {[%clk 00:26:23]} {[%emt 00:00:11]} Rxg2+ {[%clk 00:00:44]}
{[%emt 00:01:05]} 57. Kc3 {[%clk 00:26:38]} {[%emt 00:00:14]} Bb8 {[%clk
00:01:00]} {[%emt 00:00:13]} 58. Kb4 {[%clk 00:21:51]} {[%emt 00:05:17]} Kxb7
{[%clk 00:01:04]} {[%emt 00:00:27]} 59. Kc5+ {[%clk 00:22:16]} {[%emt
00:00:05]} Ka7 {[%clk 00:00:48]} {[%emt 00:00:46]} 60. Kxd5 {[%clk 00:22:18]}
{[%emt 00:00:27]} Rg1 {[%clk 00:00:48]} {[%emt 00:00:29]} 61. Rc1 {[%clk
00:19:51]} {[%emt 00:02:59]} Bg3 {[%clk 00:00:46]} {[%emt 00:00:32]} 62. Bd2
{[%clk 00:20:05]} {[%emt 00:00:16]} Rxc1 {[%clk 00:01:05]} {[%emt 00:00:11]} 63.
Bxc1 {[%clk 00:19:50]} {[%emt 00:00:45]} c3 {[%clk 00:01:12]} {[%emt 00:00:24]}
64. Kxe4 {[%clk 00:20:09]} {[%emt 00:00:11]} Be1 {[%clk 00:01:25]} {[%emt
00:00:16]} 65. Kd3 {[%clk 00:20:13]} {[%emt 00:00:26]} Bd2 {[%clk 00:01:40]}
{[%emt 00:00:16]} 66. Ba3 {[%clk 00:20:13]} {[%emt 00:00:29]} g5 {[%clk
00:01:20]} {[%emt 00:00:50]} 67. d5 {[%clk 00:18:45]} {[%emt 00:01:58]} Kb6
{[%clk 00:01:25]} {[%emt 00:00:26]} 68. Bf8 {[%clk 00:16:25]} {[%emt 00:02:50]}
h5 {[%clk 00:01:41]} {[%emt 00:00:13]} 69. e4 {[%clk 00:15:17]} {[%emt
00:01:38]} g4 {[%clk 00:01:23]} {[%emt 00:00:48]} 70. hxg4 {[%clk 00:15:28]}
{[%emt 00:00:20]} hxg4 {[%clk 00:01:20]} {[%emt 00:00:33]} 71. Bd6 {[%clk
00:15:31]} {[%emt 00:00:26]} Kb7 {[%clk 00:01:10]} {[%emt 00:00:39]} 72. Bg3
{[%clk 00:15:07]} {[%emt 00:00:53]} Kc8 {[%clk 00:00:48]} {[%emt 00:00:54]} 73.
e5 {[%clk 00:14:07]} {[%emt 00:01:30]} Kd7 {[%clk 00:00:46]} {[%emt 00:00:33]}
74. e6+ {[%clk 00:11:12]} {[%emt 00:03:24]} Ke7 {[%clk 00:01:01]} {[%emt
00:00:14]} 75. Bh4+ {[%clk 00:11:06]} {[%emt 00:00:38]} Kd6 {[%clk 00:01:13]}
{[%emt 00:00:16]} 76. Bg3+ {[%clk 00:10:14]} {[%emt 00:01:23]} Ke7 {[%clk
00:01:36]} {[%emt 00:00:08]} 77. Bh4+ {[%clk 00:10:23]} {[%emt 00:00:21]} Kd6
{[%clk 00:01:22]} {[%emt 00:00:45]} 78. Bg3+ {[%clk 00:09:59]} {[%emt
00:00:54]} Ke7 {[%clk 00:01:29]} {[%emt 00:00:23]} 1/2-1/2

[Event "32nd NATO Chess Championship"]
[Site "Tartu, Estonia"]
[Date "2022.06.30"]
[Round "6.47"]
[White "Chapman, Chas"]
[Black "Steffers, Hendrik"]
[Result "0-1"]
[TimeControl "90 min + 30 sec increment from move one"]
[WhiteFideId "443468"]
[BlackFideId "1010743"]
[WhiteElo "1646"]
[BlackElo "1838"]

1. e4 {[%clk 01:30:46]} {[%emt 00:00:14]} c5 {[%clk 01:30:53]} {[%emt
00:00:07]} 2. Nf3 {[%clk 01:31:01]} {[%emt 00:00:14]} e6 {[%clk 01:31:13]}
{[%emt 00:00:10]} 3. d3 {[%clk 01:29:52]} {[%emt 00:01:39]} d5 {[%clk
01:30:40]} {[%emt 00:01:03]} 4. exd5 {[%clk 01:29:11]} {[%emt 00:01:12]} exd5
{[%clk 01:30:57]} {[%emt 00:00:11]} 5. Be2 {[%clk 01:26:48]} {[%emt 00:02:54]}
Nf6 {[%clk 01:30:45]} {[%emt 00:00:42]} 6. O-O {[%clk 01:25:49]} {[%emt
00:01:30]} Bd6 {[%clk 01:28:36]} {[%emt 00:02:39]} 7. b3 {[%clk 01:23:21]}
{[%emt 00:02:58]} O-O {[%clk 01:28:21]} {[%emt 00:00:45]} 8. Bb2 {[%clk
01:22:42]} {[%emt 00:01:09]} Nc6 {[%clk 01:26:31]} {[%emt 00:02:19]} 9. c4
{[%clk 01:18:46]} {[%emt 00:04:26]} d4 {[%clk 01:26:30]} {[%emt 00:00:31]} 10.
Re1 {[%clk 01:13:21]} {[%emt 00:05:55]} Qc7 {[%clk 01:24:35]} {[%emt 00:02:25]}
11. Nbd2 {[%clk 01:09:38]} {[%emt 00:04:14]} Re8 {[%clk 01:23:21]} {[%emt
00:01:43]} 12. Bf1 {[%clk 01:07:17]} {[%emt 00:02:52]} Bg4 {[%clk 01:23:00]}
{[%emt 00:00:51]} 13. h3 {[%clk 01:06:31]} {[%emt 00:01:16]} Bf5 {[%clk
01:18:26]} {[%emt 00:05:04]} 14. Rxe8+ {[%clk 01:05:02]} {[%emt 00:02:00]} Rxe8
{[%clk 01:18:43]} {[%emt 00:00:13]} 15. a3 {[%clk 01:04:33]} {[%emt 00:00:58]}
a5 {[%clk 01:18:00]} {[%emt 00:01:13]} 16. Qc2 {[%clk 01:03:56]} {[%emt
00:01:07]} h6 {[%clk 01:16:26]} {[%emt 00:02:03]} 17. Re1 {[%clk 01:03:04]}
{[%emt 00:01:23]} Rxe1 {[%clk 01:14:19]} {[%emt 00:02:36]} 18. Nxe1 {[%clk
01:03:25]} {[%emt 00:00:09]} Qe7 {[%clk 01:07:51]} {[%emt 00:06:58]} 19. Nef3
{[%clk 01:02:47]} {[%emt 00:01:09]} g5 {[%clk 01:02:37]} {[%emt 00:05:43]} 20.
Qd1 {[%clk 01:01:10]} {[%emt 00:02:08]} Bg6 {[%clk 00:57:19]} {[%emt 00:05:48]}
21. Qe2 {[%clk 00:57:40]} {[%emt 00:04:00]} Qxe2 {[%clk 00:55:55]} {[%emt
00:01:54]} 22. Bxe2 {[%clk 00:57:47]} {[%emt 00:00:23]} b6 {[%clk 00:49:42]}
{[%emt 00:06:43]} 23. Kf1 {[%clk 00:55:19]} {[%emt 00:02:57]} Kg7 {[%clk
00:45:10]} {[%emt 00:05:02]} 24. Ne1 {[%clk 00:51:53]} {[%emt 00:03:56]} Bf4
{[%clk 00:40:14]} {[%emt 00:05:27]} 25. Ndf3 {[%clk 00:49:46]} {[%emt
00:02:38]} Nd7 {[%clk 00:38:18]} {[%emt 00:02:26]} 26. Nc2 {[%clk 00:47:14]}
{[%emt 00:03:02]} Bd6 {[%clk 00:35:57]} {[%emt 00:02:51]} 27. Bc1 {[%clk
00:46:34]} {[%emt 00:01:09]} f5 {[%clk 00:32:00]} {[%emt 00:04:27]} 28. Bd2
{[%clk 00:45:08]} {[%emt 00:01:57]} f4 {[%clk 00:29:36]} {[%emt 00:02:53]} 29.
Kg1 {[%clk 00:42:17]} {[%emt 00:03:22]} Kf6 {[%clk 00:29:04]} {[%emt 00:01:02]}
30. Kf1 {[%clk 00:40:58]} {[%emt 00:01:50]} Be7 {[%clk 00:25:10]} {[%emt
00:04:24]} 31. Kg1 {[%clk 00:40:36]} {[%emt 00:00:50]} Nce5 {[%clk 00:22:53]}
{[%emt 00:02:48]} 32. Nxe5 {[%clk 00:38:44]} {[%emt 00:02:22]} Nxe5 {[%clk
00:23:09]} {[%emt 00:00:14]} 33. Ne1 {[%clk 00:37:46]} {[%emt 00:01:28]} Be8
{[%clk 00:23:07]} {[%emt 00:00:33]} 34. Nf3 {[%clk 00:37:10]} {[%emt 00:01:06]}
a4 {[%clk 00:22:56]} {[%emt 00:00:41]} 35. b4 {[%clk 00:35:16]} {[%emt
00:02:24]} Nxf3+ {[%clk 00:21:50]} {[%emt 00:01:36]} 36. gxf3 {[%clk 00:34:52]}
{[%emt 00:00:54]} cxb4 {[%clk 00:21:10]} {[%emt 00:01:11]} 37. Bc1 {[%clk
00:31:42]} {[%emt 00:03:39]} bxa3 {[%clk 00:20:54]} {[%emt 00:00:46]} 38. h4
{[%clk 00:30:07]} {[%emt 00:02:05]} Ke5 {[%clk 00:20:05]} {[%emt 00:01:18]} 39.
hxg5 {[%clk 00:30:00]} {[%emt 00:00:38]} hxg5 {[%clk 00:20:33]} {[%emt
00:00:01]} 40. Kg2 {[%clk 00:30:00]} {[%emt 00:00:30]} Bb4 {[%clk 00:20:21]}
{[%emt 00:00:42]} 0-1

[Event "32nd NATO Chess Championship"]
[Site "Tartu, Estonia"]
[Date "2022.07.01"]
[Round "7.2"]
[White "Valeinis, Janis"]
[Black "Papasimakopoulos, Alexandros"]
[Result "0-1"]
[TimeControl "90 min + 30 sec increment from move one"]
[BlackTitle "CM"]
[WhiteFideId "11601450"]
[BlackFideId "4244125"]
[WhiteElo "2176"]
[BlackElo "2259"]

1. Nf3 {[%clk 01:29:59]} {[%emt 00:00:01]} g6 {[%clk 01:31:00]} 2. e4 {[%clk
01:29:03]} {[%emt 00:02:25]} c6 {[%clk 01:31:00]} {[%emt 00:00:30]} 3. d4
{[%clk 01:23:35]} {[%emt 00:05:58]} d5 {[%clk 01:31:14]} {[%emt 00:00:17]} 4.
exd5 {[%clk 01:16:55]} {[%emt 00:07:10]} cxd5 {[%clk 01:31:37]} {[%emt
00:00:06]} 5. Bd3 {[%clk 01:17:15]} {[%emt 00:00:10]} Bg7 {[%clk 01:31:10]}
{[%emt 00:00:57]} 6. O-O {[%clk 01:17:07]} {[%emt 00:00:38]} Bg4 {[%clk
01:31:20]} {[%emt 00:00:19]} 7. c3 {[%clk 01:17:17]} {[%emt 00:00:21]} Bxf3
{[%clk 01:30:48]} {[%emt 00:01:02]} 8. Qxf3 {[%clk 01:17:42]} {[%emt 00:00:04]}
Nc6 {[%clk 01:30:55]} {[%emt 00:00:24]} 9. Re1 {[%clk 01:17:55]} {[%emt
00:00:17]} Nf6 {[%clk 01:30:45]} {[%emt 00:00:40]} 10. Nd2 {[%clk 01:18:00]}
{[%emt 00:00:25]} O-O {[%clk 01:31:02]} {[%emt 00:00:12]} 11. Nf1 {[%clk
01:09:47]} {[%emt 00:08:43]} Re8 {[%clk 01:30:57]} {[%emt 00:00:36]} 12. Bg5
{[%clk 01:08:05]} {[%emt 00:02:12]} h6 {[%clk 01:22:13]} {[%emt 00:09:14]} 13.
Bh4 {[%clk 00:51:43]} {[%emt 00:16:52]} e5 {[%clk 01:19:50]} {[%emt 00:02:53]}
14. dxe5 {[%clk 00:51:27]} {[%emt 00:00:46]} Nxe5 {[%clk 01:20:13]} {[%emt
00:00:07]} 15. Qd1 {[%clk 00:51:37]} {[%emt 00:00:20]} Qb6 {[%clk 01:18:56]}
{[%emt 00:01:47]} 16. Bxf6 {[%clk 00:43:58]} {[%emt 00:08:09]} Bxf6 {[%clk
01:19:18]} {[%emt 00:00:08]} 17. Re2 {[%clk 00:44:22]} {[%emt 00:00:06]} d4
{[%clk 01:16:29]} {[%emt 00:03:17]} 18. c4 {[%clk 00:41:07]} {[%emt 00:03:47]}
Nxd3 {[%clk 01:04:11]} {[%emt 00:12:48]} 19. Qxd3 {[%clk 00:41:08]} {[%emt
00:00:29]} Rxe2 {[%clk 01:04:34]} {[%emt 00:00:07]} 20. Qxe2 {[%clk 00:41:34]}
{[%emt 00:00:04]} Rd8 {[%clk 00:59:12]} {[%emt 00:05:51]} 21. Rd1 {[%clk
00:41:53]} {[%emt 00:00:12]} d3 {[%clk 00:59:30]} {[%emt 00:00:12]} 22. Rxd3
{[%clk 00:42:18]} {[%emt 00:00:06]} Rxd3 {[%clk 00:59:46]} {[%emt 00:00:13]} 23.
Qxd3 {[%clk 00:42:45]} {[%emt 00:00:03]} Qxb2 {[%clk 00:59:56]} {[%emt
00:00:19]} 24. Qd2 {[%clk 00:22:00]} {[%emt 00:21:16]} Bd4 {[%clk 00:54:41]}
{[%emt 00:05:44]} 25. Qxb2 {[%clk 00:22:05]} {[%emt 00:00:26]} Bxb2 {[%clk
00:55:05]} {[%emt 00:00:06]} 26. Nd2 {[%clk 00:22:31]} {[%emt 00:00:04]} Kf8
{[%clk 00:49:34]} {[%emt 00:06:01]} 27. Kf1 {[%clk 00:22:48]} {[%emt 00:00:14]}
Ke7 {[%clk 00:49:59]} {[%emt 00:00:04]} 28. Ke2 {[%clk 00:23:03]} {[%emt
00:00:15]} Kd6 {[%clk 00:50:25]} {[%emt 00:00:03]} 29. Nb3 {[%clk 00:23:27]}
{[%emt 00:00:06]} Be5 {[%clk 00:46:50]} {[%emt 00:04:04]} 30. h3 {[%clk
00:22:41]} {[%emt 00:01:18]} Bc3 {[%clk 00:46:25]} {[%emt 00:00:55]} 31. a4
{[%clk 00:20:30]} {[%emt 00:02:41]} Ke5 {[%clk 00:46:23]} {[%emt 00:00:31]} 32.
Kd3 {[%clk 00:19:33]} {[%emt 00:01:28]} Be1 {[%clk 00:46:45]} {[%emt 00:00:06]}
33. Ke2 {[%clk 00:19:57]} {[%emt 00:00:08]} Bb4 {[%clk 00:47:06]} {[%emt
00:00:08]} 34. f3 {[%clk 00:19:32]} {[%emt 00:00:56]} h5 {[%clk 00:46:14]}
{[%emt 00:01:21]} 35. Kd3 {[%clk 00:19:53]} {[%emt 00:00:09]} Kf4 {[%clk
00:44:48]} {[%emt 00:01:56]} 36. Ke2 {[%clk 00:20:17]} {[%emt 00:00:07]} Ke5
{[%clk 00:44:11]} {[%emt 00:01:06]} 37. Kd3 {[%clk 00:20:40]} {[%emt 00:00:08]}
g5 {[%clk 00:44:35]} {[%emt 00:00:05]} 38. Ke3 {[%clk 00:20:43]} {[%emt
00:00:28]} b6 {[%clk 00:44:34]} {[%emt 00:00:31]} 39. Kd3 {[%clk 00:09:01]}
{[%emt 00:12:12]} Kf4 {[%clk 00:44:08]} {[%emt 00:00:56]} 40. Ke2 {[%clk
00:09:17]} {[%emt 00:00:15]} a5 {[%clk 00:35:20]} {[%emt 00:09:16]} 41. Kf2
{[%clk 00:09:28]} {[%emt 00:00:21]} h4 {[%clk 00:34:51]} {[%emt 00:00:59]} 42.
Ke2 {[%clk 00:09:33]} {[%emt 00:00:25]} Ba3 {[%clk 00:29:36]} {[%emt 00:05:44]}
43. Nd2 {[%clk 00:09:53]} {[%emt 00:00:11]} Kg3 {[%clk 00:29:01]} {[%emt
00:01:04]} 44. Kf1 {[%clk 00:10:18]} {[%emt 00:00:05]} f5 {[%clk 00:29:20]}
{[%emt 00:00:11]} 45. Nb3 {[%clk 00:10:44]} {[%emt 00:00:04]} g4 {[%clk
00:28:41]} {[%emt 00:01:09]} 46. fxg4 {[%clk 00:11:10]} {[%emt 00:00:04]} fxg4
{[%clk 00:29:09]} {[%emt 00:00:02]} 47. hxg4 {[%clk 00:11:33]} {[%emt
00:00:07]} Kxg4 {[%clk 00:29:34]} {[%emt 00:00:05]} 48. Na1 {[%clk 00:10:01]}
{[%emt 00:02:03]} Kf4 {[%clk 00:29:20]} {[%emt 00:00:44]} 49. Ke2 {[%clk
00:09:50]} {[%emt 00:00:41]} Ke4 {[%clk 00:29:26]} {[%emt 00:00:23]} 50. Nc2
{[%clk 00:02:47]} {[%emt 00:07:34]} Bc1 {[%clk 00:29:42]} {[%emt 00:00:13]} 51.
Na1 {[%clk 00:02:12]} {[%emt 00:01:06]} Ba3 {[%clk 00:29:14]} {[%emt 00:00:57]}
52. Nc2 {[%clk 00:01:05]} {[%emt 00:01:37]} Be7 {[%clk 00:28:07]} {[%emt
00:01:35]} 53. Kd2 {[%clk 00:00:45]} {[%emt 00:00:53]} Bf6 {[%clk 00:28:07]}
{[%emt 00:00:29]} 54. Na3 {[%clk 00:00:37]} {[%emt 00:00:39]} Kd4 {[%clk
00:28:14]} {[%emt 00:00:22]} 55. Kc2 {[%clk 00:00:39]} {[%emt 00:00:29]} Be7
{[%clk 00:27:48]} {[%emt 00:00:54]} 56. Nb5+ {[%clk 00:00:52]} {[%emt
00:00:19]} Kxc4 {[%clk 00:28:07]} {[%emt 00:00:11]} 57. Nc3 {[%clk 00:00:42]}
{[%emt 00:00:40]} Bd8 {[%clk 00:28:15]} {[%emt 00:00:21]} 58. Na2 {[%clk
00:01:05]} {[%emt 00:00:07]} Bf6 {[%clk 00:28:36]} {[%emt 00:00:09]} 0-1

[Event "32nd NATO Chess Championship"]
[Site "Tartu, Estonia"]
[Date "2022.07.01"]
[Round "7.3"]
[White "Wang, Eigen"]
[Black "Bohn, Ulrich"]
[Result "1-0"]
[TimeControl "90 min + 30 sec increment from move one"]
[WhiteFideId "2008777"]
[BlackFideId "4656105"]
[WhiteElo "2293"]
[BlackElo "2168"]

1. d4 {[%clk 01:30:56]} {[%emt 00:00:04]} Nf6 {[%clk 01:30:52]} {[%emt
00:00:07]} 2. Nf3 {[%clk 01:31:18]} {[%emt 00:00:08]} c5 {[%clk 01:31:06]}
{[%emt 00:00:16]} 3. d5 {[%clk 01:31:42]} {[%emt 00:00:07]} b5 {[%clk
01:30:47]} {[%emt 00:00:49]} 4. c4 {[%clk 01:31:40]} {[%emt 00:00:32]} Bb7
{[%clk 01:31:01]} {[%emt 00:00:16]} 5. Qc2 {[%clk 01:31:56]} {[%emt 00:00:13]}
bxc4 {[%clk 01:28:16]} {[%emt 00:03:16]} 6. e4 {[%clk 01:32:07]} {[%emt
00:00:19]} e6 {[%clk 01:28:02]} {[%emt 00:00:44]} 7. Bxc4 {[%clk 01:31:56]}
{[%emt 00:00:42]} Be7 {[%clk 01:19:36]} {[%emt 00:08:55]} 8. Nc3 {[%clk
01:30:06]} {[%emt 00:02:20]} O-O {[%clk 01:17:44]} {[%emt 00:02:22]} 9. O-O
{[%clk 01:27:16]} {[%emt 00:03:19]} exd5 {[%clk 01:09:41]} {[%emt 00:08:34]} 10.
exd5 {[%clk 01:27:16]} {[%emt 00:00:30]} d6 {[%clk 01:06:25]} {[%emt 00:03:47]}
11. Rd1 {[%clk 01:10:29]} {[%emt 00:17:16]} Nbd7 {[%clk 01:00:38]} {[%emt
00:06:16]} 12. a4 {[%clk 01:05:28]} {[%emt 00:05:32]} Re8 {[%clk 00:55:43]}
{[%emt 00:05:25]} 13. a5 {[%clk 01:00:19]} {[%emt 00:05:39]} a6 {[%clk
00:55:18]} {[%emt 00:00:55]} 14. h3 {[%clk 00:56:04]} {[%emt 00:04:45]} Nf8
{[%clk 00:53:13]} {[%emt 00:02:34]} 15. Bf4 {[%clk 00:54:03]} {[%emt 00:02:31]}
Ng6 {[%clk 00:52:31]} {[%emt 00:01:12]} 16. Bh2 {[%clk 00:54:19]} {[%emt
00:00:15]} Bf8 {[%clk 00:52:30]} {[%emt 00:00:30]} 17. Qa4 {[%clk 00:46:04]}
{[%emt 00:08:45]} Rb8 {[%clk 00:45:56]} {[%emt 00:07:04]} 18. Re1 {[%clk
00:36:48]} {[%emt 00:09:46]} Rxe1+ {[%clk 00:46:09]} {[%emt 00:00:18]} 19. Rxe1
{[%clk 00:37:11]} {[%emt 00:00:06]} Bc8 {[%clk 00:45:15]} {[%emt 00:01:23]} 20.
b3 {[%clk 00:37:16]} {[%emt 00:00:25]} Bd7 {[%clk 00:45:05]} {[%emt 00:00:40]}
21. Qa1 {[%clk 00:29:18]} {[%emt 00:08:29]} Bb5 {[%clk 00:44:54]} {[%emt
00:00:40]} 22. Nd2 {[%clk 00:27:41]} {[%emt 00:02:08]} Qd7 {[%clk 00:30:58]}
{[%emt 00:14:25]} 23. Nde4 {[%clk 00:26:23]} {[%emt 00:01:48]} Nxe4 {[%clk
00:30:12]} {[%emt 00:01:16]} 24. Nxe4 {[%clk 00:26:46]} {[%emt 00:00:07]} Bxc4
{[%clk 00:29:03]} {[%emt 00:01:40]} 25. bxc4 {[%clk 00:27:08]} {[%emt
00:00:09]} Rb4 {[%clk 00:23:15]} {[%emt 00:06:17]} 26. Qc3 {[%clk 00:26:36]}
{[%emt 00:01:02]} f5 {[%clk 00:18:43]} {[%emt 00:05:02]} 27. Ng5 {[%clk
00:24:10]} {[%emt 00:02:56]} Be7 {[%clk 00:18:53]} {[%emt 00:00:20]} 28. Ne6
{[%clk 00:24:13]} {[%emt 00:00:27]} Bf6 {[%clk 00:19:17]} {[%emt 00:00:05]} 29.
Qd3 {[%clk 00:22:55]} {[%emt 00:01:48]} Ne5 {[%clk 00:06:48]} {[%emt 00:12:59]}
30. Bxe5 {[%clk 00:22:39]} {[%emt 00:00:46]} Bxe5 {[%clk 00:07:13]} {[%emt
00:00:06]} 31. Qxf5 {[%clk 00:21:12]} {[%emt 00:01:57]} Qf7 {[%clk 00:07:35]}
{[%emt 00:00:07]} 32. Qe4 {[%clk 00:19:26]} {[%emt 00:02:16]} Rb2 {[%clk
00:04:56]} {[%emt 00:03:10]} 33. f4 {[%clk 00:19:21]} {[%emt 00:00:35]} Bf6
{[%clk 00:04:47]} {[%emt 00:00:39]} 34. Rb1 {[%clk 00:18:20]} {[%emt 00:01:30]}
Qb7 {[%clk 00:04:42]} {[%emt 00:00:35]} 35. Rxb2 {[%clk 00:18:34]} {[%emt
00:00:17]} Qxb2 {[%clk 00:05:08]} {[%emt 00:00:04]} 36. Kh2 {[%clk 00:18:32]}
{[%emt 00:00:30]} h6 {[%clk 00:04:48]} {[%emt 00:00:51]} 37. Qg6 {[%clk
00:09:56]} {[%emt 00:09:07]} Qf2 {[%clk 00:03:22]} {[%emt 00:01:55]} 38. Qe8+
{[%clk 00:09:19]} {[%emt 00:01:07]} Kh7 {[%clk 00:03:51]} {[%emt 00:00:02]} 39.
Nf8+ {[%clk 00:09:40]} {[%emt 00:00:09]} Kh8 {[%clk 00:03:49]} {[%emt
00:00:31]} 40. Nd7+ {[%clk 00:09:51]} {[%emt 00:00:19]} Kh7 {[%clk 00:04:09]}
{[%emt 00:00:10]} 41. Nxf6+ {[%clk 00:10:02]} {[%emt 00:00:19]} gxf6 {[%clk
00:04:35]} {[%emt 00:00:05]} 42. Qf7+ {[%clk 00:10:25]} {[%emt 00:00:06]} 1-0